bitfinex/quotes_BTCUSD_20241116
["timestamp","ask_amount","ask_price","bid_price","bid_amount"]
[1731717198692,0.08349955,90978.0,90977.0,0.00122842]
[1731717199120,0.00279955,90978.0,90977.0,0.11114542]
[1731717202525,0.00279955,90978.0,90977.0,0.00122842]
[1731717202773,0.4345781,90978.0,90977.0,0.00122842]
[1731717203012,0.37243047,90973.0,90972.0,0.0017124]
[1731717203257,0.63029302,90973.0,90972.0,0.0017124]
[1731717203488,0.63029302,90973.0,90953.0,0.04553784]
[1731717203489,0.189745,90954.0,90953.0,0.00164843]
[1731717203789,0.32180755,90954.0,90953.0,0.00164843]
[1731717205580,0.0798,90954.0,90953.0,0.11159443]
[1731717205829,0.16440698,90964.0,90960.0,0.109937]
[1731717206046,0.16440698,90964.0,90956.0,0.109942]
[1731717206270,0.16440698,90964.0,90957.0,0.00343408]
[1731717206271,0.109936,90962.0,90957.0,0.00343408]
[1731717206537,0.005,90959.0,90958.0,0.00343408]
[1731717206748,0.005,90959.0,90953.0,0.00164843]
[1731717206749,0.119945,90954.0,90953.0,0.00164843]
[1731717206966,0.35200755,90954.0,90953.0,0.00164843]
[1731717207183,0.54899751,90954.0,90953.0,0.00164843]
[1731717207404,0.54899751,90954.0,90925.0,0.16440698]
[1731717207405,0.142956,90945.0,90925.0,0.16440698]
[1731717207632,0.25201855,90945.0,90925.0,0.16440698]
[1731717208090,0.25201855,90945.0,90924.0,0.109981]
[1731717208314,0.25201855,90945.0,90921.0,0.21997]
[1731717208790,0.25201855,90945.0,90897.0,0.16440698]
[1731717208791,0.109981,90924.0,90897.0,0.16440698]
[1731717209009,0.109981,90924.0,90916.0,0.16440698]
[1731717209248,0.24204355,90924.0,90901.0,0.110009]
[1731717209467,0.24204355,90924.0,90899.0,0.220022]
[1731717209930,0.24204355,90924.0,90905.0,0.110004]
[1731717210143,0.24204355,90924.0,90908.0,0.110001]
[1731717210383,0.24204355,90924.0,90909.0,0.109999]
[1731717211049,0.24204355,90924.0,90910.0,0.109998]
[1731717211530,0.14970847,90938.0,90899.0,0.220022]
[1731717211531,0.005,90936.0,90908.0,0.16440698]
[1731717211534,0.023,90930.0,90921.0,0.219968]
[1731717211795,0.109978,90927.0,90920.0,0.109986]
[1731717212030,0.109981,90925.0,90915.0,0.219983]
[1731717212251,0.109979,90927.0,90915.0,0.219983]
[1731717212463,0.10906255,90929.0,90923.0,0.1108388]
[1731717212686,0.10906255,90929.0,90923.0,0.0008568]
[1731717212897,0.10998,90926.0,90923.0,0.0008568]
[1731717213108,0.109981,90925.0,90923.0,0.0008568]
[1731717213566,0.109981,90924.0,90923.0,0.0008568]
[1731717213985,0.16440698,90927.0,90923.0,0.0008568]
[1731717214198,0.109981,90924.0,90923.0,0.0008568]
[1731717214434,0.219954,90928.0,90923.0,0.0008568]
[1731717214649,0.10906255,90928.0,90923.0,0.0008568]
[1731717215291,0.109981,90924.0,90923.0,0.0008568]
[1731717216647,0.10906255,90928.0,90923.0,0.0008568]
[1731717217056,0.109979,90926.0,90923.0,0.0008568]
[1731717218805,0.002,90959.0,90923.0,0.0008568]
[1731717218806,0.023,90941.0,90923.0,0.0008568]
[1731717219056,0.023,90938.0,90933.0,0.10997]
[1731717219260,0.023,90938.0,90930.0,0.219947]
[1731717219261,0.023,90938.0,90936.0,0.109967]
[1731717219471,0.132964,90939.0,90933.0,0.10997]
[1731717220090,0.10906255,90938.0,90933.0,0.10997]
[1731717220319,0.21902755,90938.0,90933.0,0.10997]
[1731717221219,0.0755,90946.0,90923.0,0.0008568]
[1731717221436,0.16440698,90943.0,90942.0,0.10996]
[1731717221884,0.16440698,90943.0,90932.0,0.219944]
[1731717222100,0.109961,90941.0,90923.0,0.15548843]
[1731717222347,0.109961,90941.0,90924.0,0.1]
[1731717222560,0.16440698,90933.0,90923.0,0.0008568]
[1731717222775,0.0755,90936.0,90923.0,0.0008568]
[1731717222776,0.185467,90936.0,90930.0,0.109974]
[1731717223009,0.0755,90936.0,90932.0,0.109971]
[1731717223245,0.10906255,90941.0,90923.0,0.0008568]
[1731717223687,0.10906255,90941.0,90924.0,0.219963]
[1731717223899,0.10906255,90941.0,90923.0,0.0008568]
[1731717224111,0.10906255,90941.0,90926.0,0.219959]
[1731717224348,0.16440698,90942.0,90923.0,0.0008568]
[1731717224561,0.16440698,90942.0,90939.0,0.109962]
[1731717224770,0.16440698,90942.0,90928.0,0.219951]
[1731717224771,0.16440698,90942.0,90940.0,0.109962]
[1731717225012,0.16440698,90942.0,90937.0,0.219931]
[1731717225469,0.16440698,90942.0,90939.0,0.109963]
[1731717225962,0.439804,90950.0,90923.0,0.0008568]
[1731717225963,0.109951,90950.0,90945.0,0.109955]
[1731717226190,0.10906255,90949.0,90943.0,0.219917]
[1731717226411,0.0767,90954.0,90946.0,0.109955]
[1731717226645,0.109949,90951.0,90946.0,0.109955]
[1731717226908,0.0767,90954.0,90950.0,0.109949]
[1731717227145,0.105,90963.0,90927.0,0.219956]
[1731717227146,0.24110698,90964.0,90936.0,0.14970847]
[1731717227361,0.24110698,90964.0,90960.0,0.109937]
[1731717227585,0.24110698,90964.0,90958.0,0.219881]
[1731717227802,0.24110698,90964.0,90948.0,0.219904]
[1731717227803,0.109935,90963.0,90949.0,0.219903]
[1731717228048,0.109935,90963.0,90948.0,0.219904]
[1731717228049,0.109935,90963.0,90957.0,0.109941]
[1731717228257,0.24110698,90964.0,90955.0,0.109943]
[1731717228484,0.35104098,90964.0,90958.0,0.10994]
[1731717229143,0.109937,90962.0,90957.0,0.109941]
[1731717229374,0.24110698,90964.0,90958.0,0.10994]
[1731717229375,0.35103998,90964.0,90958.0,0.10994]
[1731717229579,0.35103998,90964.0,90955.0,0.219887]
[1731717229580,0.186633,90964.0,90955.0,0.219887]
[1731717229805,0.186633,90964.0,90958.0,0.10994]
[1731717230026,0.186633,90964.0,90938.0,0.21993]
[1731717230027,0.0767,90964.0,90936.0,0.1947659]
[1731717230266,0.023,90971.0,90944.0,0.14970847]
[1731717230499,0.16440698,90958.0,90957.0,0.219882]
[1731717230737,0.16440698,90958.0,90957.0,0.329824]
[1731717230970,0.109928,90968.0,90958.0,0.329821]
[1731717231181,0.16440698,90964.0,90963.0,0.109933]
[1731717231395,0.16611998,90964.0,90963.0,0.109933]
[1731717231597,0.001713,90964.0,90963.0,0.109933]
[1731717232506,0.001713,90964.0,90957.0,0.219882]
[1731717233150,0.001713,90964.0,90960.0,0.109938]
[1731717235762,0.001713,90964.0,90951.0,0.219897]
[1731717235988,0.001713,90964.0,90963.0,0.109934]
[1731717236199,0.001713,90964.0,90958.0,0.219881]
[1731717236409,0.001713,90964.0,90961.0,0.109936]
[1731717236624,0.001713,90964.0,90959.0,0.109939]
[1731717236625,0.111646,90964.0,90959.0,0.109939]
[1731717236837,0.001713,90964.0,90960.0,0.109937]
[1731717238866,0.001713,90964.0,90958.0,0.219881]
[1731717239114,0.001713,90964.0,90960.0,0.109937]
[1731717240458,0.16440698,90962.0,90944.0,0.0453268]
[1731717240683,0.109947,90953.0,90947.0,0.109953]
[1731717240900,0.10906255,90962.0,90931.0,0.16440698]
[1731717240901,0.38428098,90961.0,90945.0,0.109956]
[1731717241153,0.38428098,90961.0,90934.0,0.1]
[1731717241154,0.109943,90956.0,90938.0,0.439859]
[1731717241388,0.109943,90956.0,90937.0,0.04518337]
[1731717241389,0.219887,90956.0,90937.0,0.04518337]
[1731717241634,0.18446255,90955.0,90934.0,0.1]
[1731717241872,0.109953,90948.0,90941.0,0.10996]
[1731717242100,0.18446255,90955.0,90937.0,0.219932]
[1731717242101,0.219896,90952.0,90937.0,0.219932]
[1731717242307,0.109951,90949.0,90938.0,0.21993]
[1731717242578,0.109951,90949.0,90937.0,0.219932]
[1731717242788,0.109951,90949.0,90944.0,0.109957]
[1731717243225,0.10995,90950.0,90944.0,0.109956]
[1731717243437,0.10995,90950.0,90943.0,0.109958]
[1731717243639,0.10995,90950.0,90943.0,0.1108145]
[1731717243883,0.27435698,90951.0,90945.0,0.109955]
[1731717244113,0.16440698,90951.0,90946.0,0.109954]
[1731717244543,0.27435698,90951.0,90944.0,0.109957]
[1731717245645,0.109952,90949.0,90943.0,0.0008565]
[1731717245888,0.109952,90949.0,90943.0,0.1108145]
[1731717246099,0.109954,90948.0,90943.0,0.0008565]
[1731717246570,0.219901,90950.0,90943.0,0.0008565]
[1731717246795,0.109957,90944.0,90943.0,0.0008565]
[1731717247444,0.219903,90949.0,90943.0,0.0008565]
[1731717247660,0.109957,90944.0,90943.0,0.0008565]
[1731717248541,0.21901955,90944.0,90943.0,0.0008565]
[1731717248785,0.29791955,90944.0,90943.0,0.0008565]
[1731717249447,0.0789,90944.0,90943.0,0.1108145]
[1731717249660,0.006713,90964.0,90943.0,0.1108145]
[1731717249661,0.0753,90960.0,90943.0,0.0008565]
[1731717249873,0.16440698,90952.0,90951.0,0.109949]
[1731717250383,0.16440698,90962.0,90946.0,0.21991]
[1731717250593,0.16440698,90962.0,90943.0,0.0008565]
[1731717250594,0.16440698,90962.0,90956.0,0.219885]
[1731717250819,0.16440698,90962.0,90943.0,0.0008565]
[1731717250820,0.001713,90964.0,90963.0,0.109934]
[1731717253038,0.001713,90964.0,90947.0,0.219908]
[1731717253256,0.001713,90964.0,90945.0,0.219913]
[1731717253469,0.16440698,90963.0,90943.0,0.04489664]
[1731717253678,0.16440698,90963.0,90946.0,0.1]
[1731717253886,0.16440698,90963.0,90944.0,0.1]
[1731717254102,0.16440698,90963.0,90943.0,0.0008565]
[1731717254103,0.16440698,90953.0,90943.0,0.0008565]
[1731717254345,0.16440698,90963.0,90945.0,0.219913]
[1731717254346,0.295178,90960.0,90945.0,0.219913]
[1731717254553,0.295178,90960.0,90943.0,0.0008565]
[1731717254554,0.16440698,90952.0,90943.0,0.0008565]
[1731717254794,0.109952,90949.0,90943.0,0.0008565]
[1731717255007,0.109952,90948.0,90943.0,0.1108145]
[1731717255227,0.109956,90946.0,90943.0,0.0008565]
[1731717255474,0.109952,90949.0,90943.0,0.1108145]
[1731717255690,0.109954,90947.0,90943.0,0.0008565]
[1731717255930,0.32895055,90956.0,90943.0,0.0008565]
[1731717255931,0.10906255,90956.0,90943.0,0.0008565]
[1731717256162,0.001713,90964.0,90963.0,0.109934]
[1731717256387,0.001713,90964.0,90959.0,0.109939]
[1731717256612,0.001713,90964.0,90960.0,0.109938]
[1731717256838,0.001713,90964.0,90943.0,0.0008565]
[1731717257073,0.001713,90964.0,90945.0,0.219913]
[1731717257074,0.109935,90963.0,90945.0,0.219913]
[1731717257304,0.001713,90964.0,90946.0,0.109955]
[1731717257305,0.109936,90962.0,90946.0,0.109955]
[1731717257539,0.001713,90964.0,90945.0,0.219913]
[1731717257761,0.001713,90964.0,90963.0,0.109934]
[1731717258248,0.001713,90964.0,90961.0,0.219873]
[1731717258474,0.001713,90964.0,90943.0,0.0008565]
[1731717258475,0.0681,90963.0,90943.0,0.0008565]
[1731717258684,0.023,90961.0,90943.0,0.0008565]
[1731717258899,0.023,90961.0,90946.0,0.21991]
[1731717259110,0.10994,90959.0,90946.0,0.21991]
[1731717259369,0.001713,90964.0,90943.0,0.0008565]
[1731717259837,0.001713,90964.0,90963.0,0.109934]
[1731717265097,0.001713,90964.0,90963.0,0.31899655]
[1731717265996,0.001713,90964.0,90963.0,0.52090502]
[1731717266418,0.001713,90964.0,90963.0,0.60140502]
[1731717266632,0.00279955,90978.0,90977.0,0.109917]
[1731717266840,0.00279955,90978.0,90977.0,0.32597955]
[1731717267860,0.00279955,90978.0,90977.0,0.32397955]
[1731717268105,0.00279955,90978.0,90977.0,0.32597955]
[1731717268500,0.00279955,90978.0,90977.0,0.32397955]
[1731717269344,0.00279955,90978.0,90977.0,0.32597955]
[1731717269609,7.5e-07,90979.0,90978.0,0.012]
[1731717269787,7.5e-07,90979.0,90978.0,0.37617855]
[1731717269991,7.5e-07,90979.0,90978.0,0.47237608]
[1731717270194,7.5e-07,90979.0,90978.0,0.37617855]
[1731717270817,7.5e-07,90979.0,90978.0,0.52388702]
[1731717271253,7.5e-07,90979.0,90978.0,0.52588702]
[1731717271659,7.5e-07,90979.0,90978.0,0.62381618]
[1731717271861,0.16440698,90988.0,90987.0,0.221905]
[1731717272068,0.16440698,90988.0,90987.0,0.63038449]
[1731717272490,0.02,90993.0,90992.0,0.216899]
[1731717272730,0.02,90993.0,90992.0,0.32596155]
[1731717277713,0.02,90993.0,90992.0,0.37055392]
[1731717278123,0.02,90993.0,90992.0,0.37555392]
[1731717278840,0.001716,90997.0,90992.0,0.37555392]
[1731717278841,2e-07,90995.0,90994.0,0.121897]
[1731717279071,0.001716,90997.0,90996.0,0.267994]
[1731717279286,0.001716,90997.0,90996.0,0.37705655]
[1731717280171,0.16440698,91015.0,91010.0,0.216878]
[1731717280386,0.16440698,91015.0,91010.0,0.47564902]
[1731717280594,0.00543067,91011.0,91010.0,0.47564902]
[1731717280982,0.001716,91011.0,91010.0,0.47564902]
[1731717283272,0.001716,91011.0,90993.0,0.005]
[1731717283487,0.001716,91011.0,90995.0,0.14970847]
[1731717283696,0.00724778,91010.0,90995.0,0.14970847]
[1731717283926,0.109881,91008.0,90996.0,0.219789]
[1731717284131,0.00353066,91007.0,90995.0,0.14970847]
[1731717284335,0.00353066,91007.0,91006.0,0.109882]
[1731717284540,0.00370987,91010.0,90995.0,0.14970847]
[1731717284756,0.001716,91011.0,90995.0,0.14970847]
[1731717284757,0.001716,91011.0,91009.0,0.109879]
[1731717286079,0.001716,91011.0,91006.0,0.219763]
[1731717286307,0.001716,91011.0,91010.0,0.109878]
[1731717288472,0.001716,91011.0,91010.0,0.21894055]
[1731717289137,0.001716,91011.0,91008.0,0.18732696]
[1731717289350,0.001716,91011.0,91010.0,0.109878]
[1731717290156,0.001716,91011.0,91010.0,0.111878]
[1731717291348,0.001716,91011.0,91010.0,0.109878]
[1731717291558,0.001716,91011.0,91010.0,0.111878]
[1731717292215,0.001716,91011.0,91010.0,0.32594055]
[1731717292437,0.001716,91011.0,91010.0,0.33094055]
[1731717292998,0.001716,91011.0,91010.0,0.32594055]
[1731717293214,0.001716,91011.0,91010.0,0.33094055]
[1731717297721,0.001716,91011.0,91010.0,0.209878]
[1731717300570,0.001716,91011.0,91010.0,0.35958647]
[1731717300776,0.080016,91011.0,91010.0,0.109878]
[1731717300978,0.080016,91011.0,90992.0,0.14970847]
[1731717301224,0.00897648,91011.0,91010.0,0.25958647]
[1731717301430,0.00543616,91011.0,91010.0,0.26158647]
[1731717301630,0.001716,91011.0,91010.0,0.25958647]
[1731717303414,0.001716,91011.0,91010.0,0.30330025]
[1731717306877,0.001716,91011.0,91010.0,0.15359178]
[1731717309758,0.001716,91011.0,91010.0,0.30330025]
[1731717310618,0.001716,91011.0,91010.0,0.30530025]
[1731717311264,0.001716,91011.0,91010.0,0.30330025]
[1731717311664,0.001716,91011.0,91010.0,0.15359178]
[1731717312335,0.001716,91011.0,91010.0,0.109878]
[1731717313615,0.001716,91011.0,90997.0,0.002856]
[1731717313616,0.0754,91010.0,90997.0,0.000856]
[1731717313865,0.11592643,91009.0,90997.0,0.000856]
[1731717314072,0.185292,90998.0,90997.0,0.000856]
[1731717314509,0.12726388,90998.0,90997.0,0.000856]
[1731717314950,0.230292,90998.0,90997.0,0.000856]
[1731717315160,0.23715694,90998.0,90997.0,0.000856]
[1731717315594,0.12726494,90998.0,90997.0,0.000856]
[1731717316261,0.23715694,90998.0,90997.0,0.000856]
[1731717316530,0.230292,90998.0,90997.0,0.000856]
[1731717316752,0.1204,90998.0,90997.0,0.000856]
[1731717317626,0.230292,90998.0,90997.0,0.000856]
[1731717317836,0.1204,90998.0,90997.0,0.000856]
[1731717318248,0.230292,90998.0,90997.0,0.000856]
[1731717319132,0.1204,90998.0,90997.0,0.000856]
[1731717319615,0.1204,90998.0,90997.0,0.110749]
[1731717319830,0.1204,90998.0,90987.0,0.219811]
[1731717320052,0.1204,90998.0,90997.0,0.109893]
[1731717320310,0.0754,90998.0,90997.0,0.109893]
[1731717322454,0.045,91010.0,90997.0,0.109893]
[1731717322455,0.0754,91008.0,91007.0,0.109881]
[1731717322672,0.16440698,91008.0,91007.0,0.109881]
[1731717322888,0.00722815,91008.0,91007.0,0.109881]
[1731717323354,0.001716,91011.0,91010.0,0.109878]
[1731717324253,0.001716,91011.0,91010.0,0.111878]
[1731717324677,0.001716,91011.0,91010.0,0.109878]
[1731717325098,0.001716,91011.0,91010.0,0.15400205]
[1731717325567,0.001716,91011.0,91010.0,0.2630646]
[1731717325791,0.001716,91011.0,91010.0,0.3680646]
[1731717326235,0.001716,91011.0,91010.0,0.3730646]
[1731717326434,0.001716,91011.0,91010.0,0.55530744]
[1731717326899,0.001716,91011.0,91010.0,0.5036412]
[1731717327141,0.001716,91011.0,91010.0,0.50359407]
[1731717327346,0.001716,91011.0,91010.0,0.65329563]
[1731717327766,0.001716,91011.0,91010.0,0.50558716]
[1731717328008,0.001716,91011.0,91010.0,0.48105279]
[1731717328627,0.001716,91011.0,91010.0,0.48305279]
[1731717328838,0.001716,91011.0,91010.0,0.62576126]
[1731717329044,0.001716,91011.0,91010.0,0.51277307]
[1731717329250,0.001716,91011.0,91010.0,0.40371052]
[1731717330133,0.001716,91011.0,91010.0,0.40571052]
[1731717330334,0.001716,91011.0,91010.0,0.40371052]
[1731717331207,0.001716,91011.0,91010.0,0.40571052]
[1731717331440,0.001716,91011.0,91010.0,0.40371052]
[1731717332109,0.001716,91011.0,91010.0,0.109878]
[1731717332941,0.00486455,91011.0,91010.0,0.109878]
[1731717333585,0.001716,91011.0,91010.0,0.109878]
[1731717334435,0.0048643,91011.0,91010.0,0.109878]
[1731717334636,0.001716,91011.0,91010.0,0.109878]
[1731717335042,0.001716,91011.0,91000.0,0.219778]
[1731717335268,0.109879,91009.0,91003.0,0.109886]
[1731717335482,0.109879,91009.0,91002.0,0.109886]
[1731717335711,0.109879,91009.0,91000.0,0.21978]
[1731717335712,0.00314454,91008.0,91000.0,0.21978]
[1731717335919,0.221472,91011.0,90997.0,0.0008558]
[1731717335920,0.109884,91005.0,90997.0,0.0008558]
[1731717336143,0.0767,91004.0,91003.0,0.109886]
[1731717336366,0.07983981,91004.0,91003.0,0.109886]
[1731717337117,0.001716,91011.0,91010.0,0.109878]
[1731717337333,0.001716,91011.0,90997.0,0.0008558]
[1731717337740,0.109879,91009.0,90997.0,0.0008558]
[1731717337949,0.0017116,91008.0,91003.0,0.109885]
[1731717338369,0.0017116,91008.0,90997.0,0.0008558]
[1731717338587,0.0017116,91008.0,91003.0,0.109885]
[1731717338752,0.0017116,91008.0,91002.0,0.109887]
[1731717339127,0.00314318,91007.0,91002.0,0.109887]
[1731717339824,0.00314318,91007.0,91003.0,0.109885]
[1731717340056,0.00314318,91007.0,90997.0,0.0008558]
[1731717340288,0.10989,91000.0,90997.0,0.0008558]
[1731717340513,0.00314318,91007.0,90997.0,0.0008558]
[1731717340514,0.0767,91004.0,90997.0,0.0008558]
[1731717340738,0.109892,90998.0,90997.0,0.0008558]
[1731717341200,0.00313254,90998.0,90997.0,0.0008558]
[1731717341443,0.109888,91002.0,90997.0,0.0008558]
[1731717341668,0.00313056,90998.0,90997.0,0.0008558]
[1731717341891,0.109888,91002.0,90997.0,0.0008558]
[1731717342117,0.00313056,90998.0,90997.0,0.0008558]
[1731717342387,0.109888,91002.0,90997.0,0.0008558]
[1731717342388,0.00313411,91001.0,90997.0,0.0008558]
[1731717342585,0.0767,91004.0,90998.0,0.219785]
[1731717342821,0.0767,91004.0,91000.0,0.109889]
[1731717343027,0.109887,91002.0,90997.0,0.1107488]
[1731717344287,0.0767,91004.0,90997.0,0.0008558]
[1731717344527,0.0767,91004.0,91003.0,0.109886]
[1731717344786,0.0767,91004.0,90997.0,0.0008558]
[1731717344995,0.0767,91004.0,90997.0,0.2206418]
[1731717345200,0.0767,91004.0,90998.0,0.219785]
[1731717345406,0.0767,91004.0,90999.0,0.109891]
[1731717345645,0.0767,91004.0,91002.0,0.109887]
[1731717346087,0.0767,91004.0,91003.0,0.109886]
[1731717348289,0.0767,91004.0,91000.0,0.21978]
[1731717348290,0.0767,91004.0,90997.0,0.0008558]
[1731717348491,0.109892,90998.0,90997.0,0.0008558]
[1731717348691,0.155492,90998.0,90997.0,0.0008558]
[1731717349932,0.15862261,90998.0,90997.0,0.0008558]
[1731717350377,0.1586775,90998.0,90997.0,0.0008558]
[1731717351267,0.04882605,90998.0,90997.0,0.0008558]
[1731717352095,0.15871805,90998.0,90997.0,0.0008558]
[1731717352517,0.00322605,90998.0,90997.0,0.0008558]
[1731717352735,0.00322605,90998.0,90997.0,0.1107488]
[1731717352945,0.186585,91004.0,90998.0,0.109892]
[1731717353159,0.109887,91003.0,90998.0,0.109892]
[1731717353360,0.113408,91003.0,90998.0,0.109892]
[1731717356469,0.003521,91003.0,90997.0,0.0008558]
[1731717356696,0.109889,91001.0,90997.0,0.0008558]
[1731717357065,0.00351376,91000.0,90997.0,0.0008558]
[1731717358707,0.00351376,91000.0,90998.0,0.109891]
[1731717359114,0.109886,91003.0,90998.0,0.109891]
[1731717359307,0.00351134,90999.0,90998.0,0.109891]
[1731717359644,0.109889,91001.0,90997.0,0.0008558]
[1731717359847,0.0767,91004.0,90997.0,0.0008558]
[1731717359848,0.109892,90998.0,90997.0,0.0008558]
[1731717360092,0.32155455,90998.0,90997.0,0.0008558]
[1731717360302,0.37066348,90998.0,90997.0,0.0008558]
[1731717360508,0.38066348,90998.0,90997.0,0.0008558]
[1731717360713,0.37066348,90998.0,90997.0,0.0008558]
[1731717361139,0.37066348,90998.0,90995.0,0.000856]
[1731717361140,0.240094,90996.0,90995.0,0.000856]
[1731717361402,0.37715655,90996.0,90995.0,0.000856]
[1731717361603,0.109915,90979.0,90978.0,0.0008561]
[1731717361805,0.21897755,90979.0,90978.0,0.0008561]
[1731717361958,0.22930711,90979.0,90978.0,0.0008561]
[1731717363190,0.11939211,90979.0,90978.0,0.0008561]
[1731717363345,0.11939211,90979.0,90978.0,0.1107721]
[1731717363346,0.01044212,90979.0,90978.0,0.1107721]
[1731717363711,0.00686672,90989.0,90986.0,0.219812]
[1731717363885,0.0456,90996.0,90986.0,0.219812]
[1731717363886,0.16440698,90987.0,90986.0,0.329719]
[1731717364305,0.00348236,90987.0,90986.0,0.329719]
[1731717364678,0.0813,91001.0,90998.0,0.109892]
[1731717365135,0.0813,91001.0,90985.0,0.219816]
[1731717365353,0.0813,91001.0,90995.0,0.109895]
[1731717365354,0.191189,91001.0,90995.0,0.109895]
[1731717365532,0.00351134,90999.0,90992.0,0.219797]
[1731717365749,0.0813,91001.0,90996.0,0.109894]
[1731717365981,0.19036255,91001.0,90996.0,0.109894]
[1731717367152,0.0017118,91004.0,91003.0,0.109886]
[1731717367810,0.00523522,91004.0,91003.0,0.109886]
[1731717369533,0.0017118,91004.0,91003.0,0.109886]
[1731717373077,0.0017118,91004.0,91003.0,0.15472043]
[1731717375436,0.1115968,91004.0,90996.0,0.219787]
[1731717375675,0.1115968,91004.0,90987.0,0.15213851]
[1731717375676,0.0017118,91004.0,90999.0,0.10989]
[1731717375894,0.11312219,91003.0,90983.0,0.0016481]
[1731717376125,0.109909,90984.0,90983.0,0.0016481]
[1731717376568,0.0779,90987.0,90983.0,0.0016481]
[1731717376809,0.0779,90987.0,90986.0,0.109907]
[1731717377322,0.0779,90987.0,90985.0,0.109907]
[1731717377545,0.0779,90987.0,90984.0,0.219817]
[1731717377830,0.0779,90987.0,90986.0,0.109907]
[1731717378277,0.08250984,90987.0,90986.0,0.109907]
[1731717379251,0.08250984,90987.0,90983.0,0.0016481]
[1731717379628,0.08250984,90987.0,90984.0,0.109909]
[1731717379833,0.00460984,90987.0,90984.0,0.219818]
[1731717380177,0.00460984,90987.0,90983.0,0.0016481]
[1731717380178,0.0017118,91004.0,91003.0,0.109886]
[1731717383163,0.109886,91003.0,90987.0,0.219811]
[1731717383378,0.109886,91003.0,90983.0,0.1491884]
[1731717383379,0.219775,91002.0,90986.0,0.04473767]
[1731717383589,0.10989,91000.0,90983.0,0.0016481]
[1731717383813,0.00351859,91002.0,90983.0,0.0016481]
[1731717384018,0.11077435,91004.0,90983.0,0.0016481]
[1731717384019,0.16791832,90999.0,90994.0,0.109896]
[1731717384250,0.16440698,90999.0,90994.0,0.109896]
[1731717384515,0.00350893,90998.0,90991.0,0.14970847]
[1731717384753,0.00350893,90998.0,90997.0,0.25960147]
[1731717384986,0.0017118,91004.0,91003.0,0.109886]
[1731717385922,0.0017118,91004.0,91003.0,0.15549817]
[1731717386393,0.0017118,91004.0,91003.0,0.109886]
[1731717393054,0.0017118,91004.0,91003.0,0.111886]
[1731717393566,0.0017118,91004.0,91003.0,0.109886]
[1731717394016,0.0017118,91004.0,91001.0,0.219777]
[1731717394245,0.0092813,91004.0,91001.0,0.32883955]
[1731717394486,0.00575788,91004.0,91001.0,0.32883955]
[1731717394709,0.00575788,91004.0,91003.0,0.109886]
[1731717394710,0.0017118,91004.0,91003.0,0.109886]
[1731717396807,0.0017118,91004.0,91002.0,0.109887]
[1731717397057,0.00605363,91003.0,90998.0,0.109892]
[1731717397267,0.00605363,91003.0,90997.0,0.109893]
[1731717397482,0.00605363,91003.0,90993.0,0.1]
[1731717397483,0.109889,91001.0,90995.0,0.109895]
[1731717397691,0.109889,91001.0,90993.0,0.1]
[1731717397692,0.11593963,91003.0,90994.0,0.219794]
[1731717397935,0.109905,90987.0,90978.0,0.0008561]
[1731717398144,0.191805,90987.0,90982.0,0.109911]
[1731717398388,0.20028736,90987.0,90979.0,0.04558188]
[1731717398597,0.20028736,90987.0,90978.0,0.0008561]
[1731717398598,0.20028736,90987.0,90978.0,0.1107721]
[1731717399671,0.24898736,90987.0,90978.0,0.0008561]
[1731717399885,0.36004991,90987.0,90978.0,0.0008561]
[1731717401281,0.39991636,90987.0,90978.0,0.0008561]
[1731717401495,0.49991636,90987.0,90978.0,0.0008561]
[1731717401737,0.017,90984.0,90978.0,0.0008561]
[1731717401961,0.015,90979.0,90978.0,0.0008561]
[1731717402176,0.015,90979.0,90951.0,0.16440698]
[1731717402177,0.005,90952.0,90951.0,0.16440698]
[1731717402639,0.005,90952.0,90948.0,0.109952]
[1731717402640,0.00839777,90952.0,90948.0,0.109952]
[1731717402841,0.00839777,90952.0,90945.0,0.329869]
[1731717403040,0.219874,90962.0,90946.0,0.21991]
[1731717403041,0.005,90962.0,90946.0,0.21991]
[1731717403250,0.005,90962.0,90941.0,0.14970847]
[1731717403251,0.005,90964.0,90959.0,0.109938]
[1731717403467,0.114941,90958.0,90951.0,0.109948]
[1731717403695,0.109946,90954.0,90946.0,0.109954]
[1731717403928,0.005,90955.0,90949.0,0.109951]
[1731717404137,0.00397739,90953.0,90950.0,0.109949]
[1731717404352,0.00397852,90954.0,90950.0,0.109949]
[1731717404562,0.00397625,90952.0,90950.0,0.109949]
[1731717404792,0.005,90955.0,90941.0,0.36962947]
[1731717405007,0.00397512,90951.0,90944.0,0.109957]
[1731717405208,0.00397512,90951.0,90941.0,0.36962947]
[1731717405209,0.00397512,90951.0,90941.0,0.14970847]
[1731717405438,0.00339293,90950.0,90949.0,0.109951]
[1731717405646,0.00339293,90950.0,90949.0,0.25965947]
[1731717406326,0.219876,90961.0,90954.0,0.109945]
[1731717406563,0.005,90961.0,90958.0,0.10994]
[1731717406782,0.00398532,90960.0,90949.0,0.14970847]
[1731717407006,0.11392432,90960.0,90949.0,0.14970847]
[1731717407216,0.005,90953.0,90949.0,0.14970847]
[1731717407433,0.005,90953.0,90950.0,0.109949]
[1731717407657,0.00597625,90952.0,90949.0,0.25965947]
[1731717407888,0.005,90953.0,90949.0,0.25965947]
[1731717407889,0.005,90953.0,90949.0,0.36960947]
[1731717408130,0.005,90953.0,90951.0,0.109949]
[1731717408361,0.005,90953.0,90950.0,0.10995]
[1731717408585,0.005,90953.0,90949.0,0.14970847]
[1731717408586,0.00397625,90952.0,90949.0,0.14970847]
[1731717408854,0.005,90953.0,90949.0,0.25965947]
[1731717409079,0.00737402,90952.0,90949.0,0.14970847]
[1731717409301,0.00737402,90952.0,90951.0,0.109949]
[1731717409759,0.00737402,90952.0,90949.0,0.25965947]
[1731717410232,0.005,90953.0,90949.0,0.25965947]
[1731717410727,0.005,90953.0,90949.0,0.14970847]
[1731717410963,0.10995,90950.0,90949.0,0.14970847]
[1731717411191,0.22329377,90952.0,90947.0,0.00164856]
[1731717411192,0.10995,90951.0,90947.0,0.00164856]
[1731717411665,0.00737402,90952.0,90947.0,0.00110857]
[1731717412374,0.005,90948.0,90947.0,0.00110857]
[1731717412618,0.114952,90948.0,90947.0,0.00110857]